Workbook

Sheet SM-sarja
B1: Hannu Kurttila | E1: 16.12.1949
B2: MESTARUUSSARJA | E2: Runkosarja | I2: Kärkilyönnit (KL), pesänvälit | P2: Runkosarja TOP-30 | U2: Alempi loppusarja | AB2: Ylempi loppusarja TOP-10 | AG2: Play off, voitot, voittoprosentti | AL2: Arvo-ottelut | AO2: Mitalit
B3: Vuosi | C3: Sija | D3: Seura | E3: OTT | F3: KUN | G3: LÖI | H3: TOI | I3: KL | J3: 0 > 1 | K3: 1 > 2 | L3: 2 > 3 | M3: 3 > k | N3: KL-% | P3: LÖI | Q3: TOI | R3: L+T | S3: KL | U3: OTT | V3: KUN | W3: LÖI | X3: TOI | Y3: KL | Z3: KL-% | AB3: LÖI | AC3: TOI | AD3: L+T | AE3: KL | AG3: Puolivälierät | AH3: Välierät | AI3: Pronssi | AJ3: Finaalit | AL3: IL | AM3: LL | AN3: hSM | AO3: K | AP3: H | AQ3: P
B4: 1973 | C4: 2. | D4: UPV | E4: 10 | F4: 0 | G4: 3 | H4: 7 | AA4: 0
B5: 1974 | C5: 7. | D5: UPV | E5: 22 | F5: 0 | G5: 16 | H5: 8 | P5: 24. | AA5: 0
B6: 1975 | C6: 9. | D6: UPV | E6: 22 | F6: 1 | G6: 11 | H6: 16 | Q6: 29.
B7: 1976 | C7: 8. | D7: UPV | E7: 22 | F7: 3 | G7: 13 | H7: 15 | P7: 28. | R7: 26.
B8: 1977 | C8: 5. | D8: KaMa | E8: 22 | F8: 0 | G8: 3 | H8: 7 | I8: 60 | J8: 22 | K8: 17 | L8: 18 | M8: 3 | N8: ----
B9: 1978 | C9: 9. | D9: KaMa | E9: 22 | F9: 0 | G9: 5 | H9: 4 | I9: 67 | J9: 38 | K9: 15 | L9: 9 | M9: 5 | N9: ----
B10: 1979 | C10: 5. | D10: KaMa | E10: 22 | F10: 3 | G10: 19 | H10: 15 | I10: 72 | J10: 12 | K10: 19 | L10: 19 | M10: 22 | N10: ---- | P10: 17. | R10: 27.
B11: 1980 | C11: 4. | D11: KaMa | E11: 18 | F11: 0 | G11: 8 | H11: 9 | I11: 56 | J11: 13 | K11: 16 | L11: 19 | M11: 8 | N11: 53.5 % | U11: 6 | V11: 0 | W11: 1 | X11: 2 | Y11: 26 | Z11: 56.5 % | AG11: Mitalisarja 4.
B12: 1981 | C12: 5. | D12: KaMa | E12: 19 | F12: 0 | G12: 14 | H12: 8 | I12: 57 | J12: 17 | K12: 14 | L12: 12 | M12: 14 | N12: 48.7 %
B13: 1982 | C13: 5. | D13: KaKa | F13: ykkössarja
B14: 1983 | C14: 11. | D14: KaMa | E14: 1 | F14: 0 | G14: 0 | H14: 1 | I14: 2 | J14: 0 | K14: 1 | L14: 1 | M14: 0 | N14: 66.7 %
B15: Yhteensä | E15: 180 | F15: 7 | G15: 92 | H15: 90 | I15: 314 | J15: 102 | K15: 82 | L15: 78 | M15: 52 | N15: 51.1 % | P15: 0-0-0 | Q15: 0-0-0 | R15: 0-0-0 | S15: 0-0-0 | U15: 6 | V15: 0 | W15: 1 | X15: 2 | Y15: 26 | Z15: 56.5 % | AA15: 66 | AB15: 0-0-0 | AC15: 0-0-0 | AD15: 0-0-0 | AE15: 0-0-0 | AG15: 0/0 | AH15: 0/0 | AI15: 0/0 | AJ15: 0/0 | AL15: 0 | AM15: 0 | AN15: 0 | AO15: 0 | AP15: 0 | AQ15: 0
AG16: 0.0 % | AH16: 0.0 % | AI16: 0.0 % | AJ16: 0.0 %
B17: Pesispörssi | D17: 418.3
B19: URA SM-SARJASSA | E19: OTT | F19: KUN | G19: LÖI | H19: TOI | I19: KL | K19: ka/L | L19: ka/T | M19: ka/KL | N19: KL-% | P19: ENSIMMÄISET RUNKOSARJASSA | AG19: ENSIMMÄISET PUDOTUSPELEISSÄ | AL19: YLEISÖ
B20: Runkosarja | E20: 180 | F20: 7 | G20: 92 | H20: 90 | I20: 314 | K20: 0.55 | L20: 0.50 | M20: 3.02 | N20: 51.1 % | P20: Ottelu | R20: 30.05. 1973 KaMa - UPV 7-7 | Y20: 1. ottelu | AB20: 23 v 5 kk 14 pv | AG20: Ottelu | AH20: 1. 23.08. 1980 Tahko - KaMa 3-7 | AL20: 2997 | AN20: 30 v 8 kk 7 pv
B21: Ylempi loppusarja | E21: 6 | F21: 0 | G21: 1 | H21: 2 | I21: 26 | K21: 0.17 | L21: 0.33 | M21: 4.33 | N21: 56.5 % | P21: Lyöty | R21: 08.07. 1973 UPV - KPL 8-3 | Y21: 4. ottelu | AB21: 23 v 6 kk 22 pv | AG21: Lyöty | AH21: 3. 30.08. 1980 KaMa - SMJ 12-5 | AL21: 1013 | AN21: 30 v 8 kk 14 pv
B22: Alempi loppusarja | E22: 4 | F22: 0 | G22: 0 | H22: 1 | I22: 15 | K22: 0.00 | L22: 0.25 | M22: 3.75 | N22: 48.4 % | P22: Tuotu | R22: 30.05. 1973 KaMa - UPV 7-7 | Y22: 1. ottelu | AB22: 23 v 5 kk 14 pv | AG22: Tuotu | AH22: 1. 23.08. 1980 Tahko - KaMa 3-7 | AL22: 2997 | AN22: 30 v 8 kk 7 pv
B23: KAIKKI | E23: 190 | F23: 7 | G23: 93 | H23: 93 | I23: 355 | K23: 0.53 | L23: 0.49 | M23: 3.11 | N23: 51.4 % | P23: Kunnari | R23: 24.08. 1975 UPV - NJ 19-4 | Y23: 53. ottelu | AB23: 25 v 8 kk 8 pv | AG23: Kunnari
B25: Seurat | D25: UPV = Ulvilan Pesä-Veikot (1957)
D26: KaMa = Kankaanpään Maila (1958)
D27: KaKa = Kauhajoen Karhu (1910)

Sheet MYP
B1: Hannu Kurttila | E1: 16.12.1949
B2: YKKÖSPESIS | E2: Runkosarja | L2: Runkosarja TOP-10 | Q2: Jatkosarjat | X2: SUOMENSARJA | AA2: Runkosarja | AH2: Runkosarja TOP-10 | AM2: Jatkosarjat
B3: Vuosi | C3: Sija | D3: Seura | E3: OTT | F3: KUN | G3: LÖI | H3: TOI | I3: KL | J3: KL-% | L3: LÖI | M3: TOI | N3: L+T | O3: KL | Q3: OTT | R3: KUN | S3: LÖI | T3: TOI | U3: KL | V3: KL-% | X3: Vuosi | Y3: Sija | Z3: Seura | AA3: OTT | AB3: KUN | AC3: LÖI | AD3: TOI | AE3: KL | AF3: KL-% | AH3: LÖI | AI3: TOI | AJ3: L+T | AK3: KL | AM3: OTT | AN3: KUN | AO3: LÖI | AP3: TOI | AQ3: KL | AR3: KL-%
B4: 1982 | C4: 5. | D4: KaKa | E4: 8 | F4: 0 | G4: 6 | H4: 2 | Q4: 9 | R4: 1 | S4: 9 | T4: 4
B5: YHTEENSÄ | E5: =SUM(E4:E4) -> 8 | F5: =SUM(F4:F4) -> 0 | G5: =SUM(G4:G4) -> 6 | H5: =SUM(H4:H4) -> 2 | I5: =SUM(I4:I4) -> 0 | J5: 0.0 % | K5: =SUM(K4:K4) -> 0 | Q5: =SUM(Q4:Q4) -> 9 | R5: =SUM(R4:R4) -> 1 | S5: =SUM(S4:S4) -> 9 | T5: =SUM(T4:T4) -> 4 | U5: =SUM(U4:U4) -> 0 | V5: 0.0 % | W5: =SUM(W4:W4) -> 0 | X5: YHTEENSÄ | AA5: =SUM(AA4:AA4) -> 0 | AB5: =SUM(AB4:AB4) -> 0 | AC5: =SUM(AC4:AC4) -> 0 | AD5: =SUM(AD4:AD4) -> 0 | AE5: =SUM(AE4:AE4) -> 0 | AF5: 0.0 % | AG5: =SUM(AG4:AG4) -> 0 | AM5: =SUM(AM4:AM4) -> 0 | AN5: =SUM(AN4:AN4) -> 0 | AO5: =SUM(AO4:AO4) -> 0 | AP5: =SUM(AP4:AP4) -> 0 | AQ5: =SUM(AQ4:AQ4) -> 0 | AR5: 0.0 % | AS5: =SUM(AS4:AS4) -> 0
B7: KAIKKI OTTELUT | E7: OTT | F7: KUN | G7: LÖI | H7: TOI | I7: KL | J7: KL-% | L7: ka/L | M7: ka/T | N7: ka/l+t | O7: ka/kl | R7: Seurat | T7: UPV = Ulvilan Pesä-Veikot (1957)
B8: SUPERPESIS | E8: 190 | F8: 7 | G8: 93 | H8: 93 | I8: 355 | J8: 51.4 % | K8: =PRODUCT(I8/J8) -> 690.6614786 | L8: =PRODUCT((F8+G8)/E8) -> 0.53 | M8: =PRODUCT(H8/E8) -> 0.49 | N8: =PRODUCT((F8+G8+H8)/E8) -> 1.02 | O8: 3.11 | T8: KaMa = Kankaanpään Maila (1958)
B9: YKKÖSPESIS | E9: =PRODUCT(E5+Q5) -> 17 | F9: =PRODUCT(F5+R5) -> 1 | G9: =PRODUCT(G5+S5) -> 15 | H9: =PRODUCT(H5+T5) -> 6 | I9: =PRODUCT(I5+U5) -> 0 | J9: 0.0 % | K9: =PRODUCT(K5+W5) -> 0 | L9: =PRODUCT((F9+G9)/E9) -> 0.94 | M9: =PRODUCT(H9/E9) -> 0.35 | N9: =PRODUCT((F9+G9+H9)/E9) -> 1.29 | O9: =PRODUCT(I9/E9) -> 0.00 | T9: KaKa = Kauhajoen Karhu (1910)
B10: SUOMENSARJA | E10: =PRODUCT(AA5+AM5) -> 0 | F10: =PRODUCT(AB5+AN5) -> 0 | G10: =PRODUCT(AC5+AO5) -> 0 | H10: =PRODUCT(AD5+AP5) -> 0 | I10: =PRODUCT(AE5+AQ5) -> 0 | J10: 0.0 % | K10: =PRODUCT(AG5+AS5) -> 0 | L10: 0.00 | M10: 0.00 | N10: 0.00 | O10: 0.00
B11: YHTEENSÄ | E11: =SUM(E8:E10) -> 207 | F11: =SUM(F8:F10) -> 8 | G11: 108 | H11: 99 | I11: 355 | J11: 0.0 % | K11: =SUM(K8:K10) -> 690.6614786 | L11: =PRODUCT((F11+G11)/E11) -> 0.56 | M11: =PRODUCT(H11/E11) -> 0.48 | N11: =PRODUCT((F11+G11+H11)/E11) -> 1.04 | O11: 3.11

Sheet Pelinjohtaja
B1: PELINJOHTAJAKORTTI
B2: Hannu Kurttila | E2: 16.12.1949
B3: MSU | C3: Runkosarja | J3: Ylempi loppusarja | N3: Alempi loppusarja | R3: Mitalit | U3: Huomautuksia
B4: Vuosi | C4: Seura | D4: Sija | E4: O | F4: V | G4: H | H4: Voitto-% | J4: O | K4: V | L4: H | M4: Voitto-% | N4: O | O4: V | P4: H | Q4: Voitto-% | R4: 1 | S4: 2 | T4: 3
B5: 1991 | C5: UPV | D5: 11. | E5: MYP, 22 ottelua
B6: 1992 | C6: KaMa | D6: 12. | E6: NYP, 20 ottelua
B7: 1996 | C7: KaMa | D7: 2. | E7: MYP, 29 ottelua | N7: 3 | O7: 0 | P7: 3 | Q7: =PRODUCT(O7/N7) -> 0.0 % | U7: superpesiskarsinta
B8: Yhteensä | E8: =SUM(E7:E7) -> 0 | F8: =SUM(F7:F7) -> 0 | G8: =SUM(G7:G7) -> 0 | H8: 0.0 % | J8: =SUM(J7:J7) -> 0 | K8: =SUM(K7:K7) -> 0 | L8: =SUM(L7:L7) -> 0 | M8: 0.0 % | N8: =SUM(N7:N7) -> 3 | O8: =SUM(O7:O7) -> 0 | P8: =SUM(P7:P7) -> 3 | Q8: =PRODUCT(O8/N8) -> 0.0 % | R8: =SUM(R7:R7) -> 0 | S8: =SUM(S7:S7) -> 0 | T8: =SUM(T7:T7) -> 0
B10: URA SUPERISSA | E10: O | F10: V | G10: H | H10: Voitto-% | J10: PLAY OFF | M10: SARJAT | N10: O | O10: V | P10: H | Q10: Voitto-%
B11: Runkosarja | J11: Puolivälierät
B12: Ylempi loppusarja | J12: Välierät
B13: Alempi loppusarja | E13: 3 | F13: 0 | G13: =SUM(P8) -> 3 | H13: =PRODUCT(F13/E13) -> 0.0 % | J13: Finaalit
B14: KAIKKI | E14: =SUM(E11:E13) -> 3 | F14: =SUM(F11:F13) -> 0 | G14: =SUM(G11:G13) -> 3 | H14: =PRODUCT(F14/E14) -> 0.0 % | J14: KAIKKI
B16: Seurat: | C16: UPV = Ulvilan Pesä-Veikot (1957)
C17: KaMa = Kankaanpään Maila (1958)

Sheet Kärkilyönnit
B1: KÄRKILYÖNNIT RUNKOSARJASSA | V1: VUOSITTAISET SIJOITUKSET TOP - 30
G2: 0 > 1 | J2: 1 > 2 | M2: 2 > 3 | P2: 3 > k | S2: Yhteensä
B3: Vuosi | C3: Sija | D3: Seura | E3: OTT | F3: KL | G3: YHT | H3: % | I3: KL | J3: YHT | K3: % | L3: KL | M3: YHT | N3: % | O3: KL | P3: YHT | Q3: % | R3: KL | S3: YHT | T3: % | V3: Vuosi | W3: Sija | X3: Seura | Y3: 0 > 1 | Z3: 1 > 2 | AA3: 2 > 3 | AB3: 3 > k | AC3: KL
B4: 1980 | C4: 4. | D4: KaMa | E4: 18 | F4: 13 | G4: =PRODUCT(F4/H4) -> 24 | H4: 54.2 % | I4: 16 | J4: =PRODUCT(I4/K4) -> 29 | K4: 55.6 % | L4: 19 | M4: =PRODUCT(L4/N4) -> 35 | N4: 54.8 % | O4: 8 | P4: =PRODUCT(O4/Q4) -> 17 | Q4: 47.1 % | R4: 56 | S4: 105 | T4: 53.5 % | V4: 1980 | W4: 4. | X4: KaMa
B5: 1981 | C5: 5. | D5: KaMa | E5: 19 | F5: 17 | G5: 37 | H5: =PRODUCT(F5/G5) -> 45.9 % | I5: 14 | J5: 24 | K5: =PRODUCT(I5/J5) -> 58.3 % | L5: 12 | M5: 28 | N5: =PRODUCT(L5/M5) -> 42.9 % | O5: 14 | P5: 28 | Q5: =PRODUCT(O5/P5) -> 50.0 % | R5: 57 | S5: =PRODUCT(G5+J5+M5+P5) -> 117 | T5: =PRODUCT(R5/S5) -> 48.7 % | V5: 1981 | W5: 5. | X5: KaMa
B6: 1982 | V6: 1982
B7: 1983 | C7: 11. | D7: KaMa | E7: 1 | F7: 0 | G7: 0 | H7: 0.0 % | I7: 0 | J7: 1 | K7: =PRODUCT(I7/J7) -> 0.0 % | L7: 1 | M7: 2 | N7: =PRODUCT(L7/M7) -> 50.0 % | O7: 1 | P7: 0 | Q7: 0.0 % | R7: 2 | S7: =PRODUCT(G7+J7+M7+P7) -> 3 | T7: =PRODUCT(R7/S7) -> 66.7 % | V7: 1983 | W7: 11. | X7: KaMa
B8: Yhteensä | E8: =SUM(E4:E7) -> 38 | F8: =SUM(F4:F7) -> 30 | G8: =SUM(G4:G7) -> 61 | H8: =PRODUCT(F8/G8) -> 49.2 % | I8: =SUM(I4:I7) -> 30 | J8: =SUM(J4:J7) -> 54 | K8: =PRODUCT(I8/J8) -> 55.8 % | L8: =SUM(L4:L7) -> 32 | M8: =SUM(M4:M7) -> 65 | N8: =PRODUCT(L8/M8) -> 49.5 % | O8: =SUM(O4:O7) -> 23 | P8: =SUM(P4:P7) -> 45 | Q8: =PRODUCT(O8/P8) -> 51.1 % | R8: =SUM(R4:R7) -> 115 | S8: =SUM(S4:S7) -> 225 | T8: =PRODUCT(R8/S8) -> 51.1 %
B10: KÄRKILYÖNNIT YLEMMISSÄ PUDOTUSPELEISSÄ | V10: VUOSITTAISET SIJOITUKSET TOP - 30
G11: 0 > 1 | J11: 1 > 2 | M11: 2 > 3 | P11: 3 > k | S11: Yhteensä
B12: Vuosi | C12: Sija | D12: Seura | E12: OTT | F12: KL | G12: YHT | H12: % | I12: KL | J12: YHT | K12: % | L12: KL | M12: YHT | N12: % | O12: KL | P12: YHT | Q12: % | R12: KL | S12: YHT | T12: % | V12: Vuosi | W12: Sija | X12: Seura | Y12: 0 > 1 | Z12: 1 > 2 | AA12: 2 > 3 | AB12: 3 > k | AC12: KL
B13: 1980 | C13: 4. | D13: KaMa | E13: 6 | F13: 11 | G13: 15 | H13: 73.3 % | I13: 9 | J13: 12 | K13: 75.0 % | L13: 5 | M13: 10 | N13: 50.0 % | O13: 1 | P13: 9 | Q13: 11.1 % | R13: 26 | S13: 46 | T13: 56.5 % | V13: 1980 | W13: 4. | X13: KaMa | Y13: 8. | Z13: 11. | AA13: 20. | AB13: 30. | AC13: 13.
B14: 1981 | C14: 5. | D14: KaMa | V14: 1981 | W14: 5. | X14: KaMa
B15: 1982 | V15: 1982
B16: 1983 | C16: 11. | D16: KaMa | V16: 1983 | W16: 11. | X16: KaMa
B17: Yhteensä | E17: =SUM(E11:E16) -> 6 | F17: =SUM(F13:F16) -> 11 | G17: =SUM(G13:G16) -> 15 | H17: =PRODUCT(F17/G17) -> 73.3 % | I17: =SUM(I13:I16) -> 9 | J17: =SUM(J13:J16) -> 12 | K17: =PRODUCT(I17/J17) -> 75.0 % | L17: =SUM(L13:L16) -> 5 | M17: =SUM(M13:M16) -> 10 | N17: =PRODUCT(L17/M17) -> 50.0 % | O17: =SUM(O13:O16) -> 1 | P17: =SUM(P13:P16) -> 9 | Q17: =PRODUCT(O17/P17) -> 11.1 % | R17: =SUM(R13:R16) -> 26 | S17: =SUM(S13:S16) -> 46 | T17: =PRODUCT(R17/S17) -> 56.5 %
B19: KÄRKILYÖNNIT
G20: 0 > 1 | J20: 1 > 2 | M20: 2 > 3 | P20: 3 > k | S20: Yhteensä
E21: OTT | F21: KL | G21: YHT | H21: % | I21: KL | J21: YHT | K21: % | L21: KL | M21: YHT | N21: % | O21: KL | P21: YHT | Q21: % | R21: KL | S21: YHT | T21: %
B22: RUNKOSARJA | E22: =PRODUCT(E8) -> 38 | F22: =PRODUCT(F8) -> 30 | G22: =PRODUCT(G8) -> 61 | H22: =PRODUCT(H8) -> 49.2 % | I22: =PRODUCT(I8) -> 30 | J22: =PRODUCT(J8) -> 53.8 | K22: =PRODUCT(K8) -> 55.8 % | L22: =PRODUCT(L8) -> 32 | M22: =PRODUCT(M8) -> 64.64705882 | N22: =PRODUCT(N8) -> 49.5 % | O22: =PRODUCT(O8) -> 23 | P22: =PRODUCT(P8) -> 45 | Q22: =PRODUCT(Q8) -> 51.1 % | R22: =PRODUCT(R8) -> 115 | S22: =PRODUCT(S8) -> 225 | T22: =PRODUCT(T8) -> 51.1 %
B23: PLAY OFF | E23: =PRODUCT(E17) -> 6 | F23: =PRODUCT(F17) -> 11 | G23: 15 | H23: 73.3 % | I23: 9 | J23: 12 | K23: 75.0 % | L23: 5 | M23: 10 | N23: 50.0 % | O23: 1 | P23: 9 | Q23: 11.1 % | R23: 26 | S23: 46 | T23: 56.5 %
